bitfinex/quotes_ETHUSD_20250411
["timestamp","ask_amount","ask_price","bid_price","bid_amount"]
[1744384825094,0.05,1556.4,1556.2,1.420655]
[1744384825280,0.05,1556.4,1556.1,8.26776975]
[1744384825281,6.47511,1556.4,1556.1,14.20753]
[1744384825482,0.05,1556.4,1556.2,6.42588]
[1744384825690,6.42598,1556.2,1555.9,7.7212]
[1744384825859,6.42567,1556.3,1555.9,7.72119]
[1744384826059,12.85137,1556.3,1556.0,6.42669]
[1744384826279,12.96462691,1556.4,1556.0,12.85327]
[1744384826494,6.42571,1556.3,1556.0,6.42658]
[1744384826696,12.85141,1556.3,1556.0,6.42658]
[1744384827292,12.85136,1556.3,1556.0,6.4267]
[1744384827481,12.96462691,1556.4,1556.0,12.85327]
[1744384827683,6.53937691,1556.4,1556.1,6.42619]
[1744384828198,6.42551,1556.3,1556.0,6.42671]
[1744384828399,6.42551,1556.3,1555.9,7.72116]
[1744384828698,12.85121,1556.3,1556.0,6.42661]
[1744384829100,6.42551,1556.3,1556.0,0.0642588]
[1744384829304,12.96461691,1556.4,1556.0,12.9175788]
[1744384829609,12.96461691,1556.4,1556.0,7.91204668]
[1744384829783,6.42558,1556.3,1555.9,14.14834]
[1744384829973,6.42558,1556.3,1556.0,6.49095798]
[1744384830173,12.96464691,1556.4,1556.0,6.49083798]
[1744384830374,12.96464691,1556.4,1556.0,12.91743798]
[1744384830574,6.42552,1556.3,1556.0,12.91743798]
[1744384830867,6.42552,1556.3,1556.1,1.2917438]
[1744384831604,6.42616,1556.2,1555.9,1.2942]
[1744384831906,6.42616,1556.2,1555.9,14.14829]
[1744384832071,6.42616,1556.2,1555.9,7.72123]
[1744384832273,6.42634,1556.1,1555.9,1.1454]
[1744384832505,6.42561,1556.3,1555.9,1.1454]
[1744384832810,6.42561,1556.3,1556.0,6.42654]
[1744384832997,6.42561,1556.3,1556.0,12.85314]
[1744384833202,6.53930691,1556.4,1556.1,6.42628]
[1744384833374,6.4257,1556.3,1556.0,6.49079838]
[1744384833579,6.4257,1556.3,1555.9,13.99948]
[1744384833580,6.42591,1556.2,1555.9,13.99948]
[1744384833929,12.85213,1556.2,1555.9,7.57244]
[1744384834149,6.42633,1556.1,1555.9,1.1454]
[1744384834622,12.85302,1556.1,1555.8,6.42745]
[1744384834829,14.154522,1556.1,1555.8,6.42745]
[1744384835319,1.301502,1556.1,1555.6,6.42822]
[1744384835497,0.06419691,1556.0,1555.5,7.71984]
[1744384835695,0.06419691,1556.0,1555.3,1.2911]
[1744384835696,8.103,1555.9,1555.3,1.2911]
[1744384835913,6.42881,1555.5,1555.2,12.85979]
[1744384836227,0.06419691,1555.4,1554.8,6.43155]
[1744384836388,6.43079,1555.1,1554.8,1.3065]
[1744384836734,13.02114,1555.4,1554.8,1.3065]
[1744384836735,6.431,1555.0,1554.8,1.3065]
[1744384836911,6.49519691,1555.0,1554.7,5.59306787]
[1744384837126,12.86205,1555.0,1554.7,12.02500787]
[1744384837290,6.431,1555.0,1554.7,12.02500787]
[1744384837892,6.65674691,1555.1,1554.8,6.43157]
[1744384838399,6.65674691,1555.1,1554.8,12.86309]
[1744384838619,13.08747691,1555.1,1554.7,7.44453532]
[1744384838919,6.43087,1555.0,1554.7,7.44453532]
[1744384839121,6.4314,1554.9,1554.6,13.37211787]
[1744384839419,6.4314,1554.9,1554.6,6.93966787]
[1744384839628,0.06419691,1554.9,1554.6,5.59306787]
[1744384839947,6.4321,1554.7,1554.6,5.59306787]
[1744384840169,6.49629691,1554.7,1554.6,5.59306787]
[1744384840425,6.4321,1554.7,1554.6,5.59306787]
[1744384840612,13.02576,1554.8,1554.6,5.59306787]
[1744384840793,6.4321,1554.7,1554.6,5.59306787]
[1744384840997,1.464576,1554.8,1554.6,5.59306787]
[1744384841197,6.59295,1555.0,1554.6,12.02543787]
[1744384841422,13.08818691,1555.0,1554.7,6.43198]
[1744384841599,13.02399,1555.0,1554.7,6.43198]
[1744384841801,6.49584691,1554.9,1554.5,6.43268]
[1744384842001,6.43185,1554.8,1554.5,6.43268]
[1744384842427,6.49604691,1554.8,1554.5,12.86547]
[1744384842598,9.59293,1555.0,1554.6,6.43221]
[1744384842925,14.032,1555.1,1554.8,6.4314]
[1744384843130,0.162,1555.2,1554.9,6.4312]
[1744384843299,6.42965,1555.3,1554.9,6.4312]
[1744384843300,0.06419691,1555.3,1555.0,12.8613]
[1744384844127,0.06419691,1555.3,1554.9,7.07434]
[1744384844288,0.06419691,1555.3,1554.7,7.67574]
[1744384844493,6.431,1555.0,1554.6,6.43244]
[1744384844797,0.06419691,1554.9,1554.6,6.43244]
[1744384845002,6.43092,1555.0,1554.6,6.4324]
[1744384845220,3.06419691,1555.1,1554.6,6.43252]
[1744384845527,0.162,1555.2,1554.9,12.86219]
[1744384845726,0.162,1555.2,1554.8,7.66184]
[1744384846025,6.49480691,1555.1,1554.6,1.2403]
[1744384846216,6.49480691,1555.1,1554.8,6.4315]
[1744384846413,6.49480691,1555.1,1554.7,6.43193]
[1744384846723,6.49480691,1555.1,1554.8,6.43144]
[1744384846928,7.8034986,1555.1,1554.8,12.86297]
[1744384847102,7.8034986,1555.1,1554.8,6.43144]
[1744384847301,1.30869169,1555.1,1554.8,6.43144]
[1744384847501,13.08646691,1555.2,1554.9,6.43123]
[1744384847752,6.4305,1555.1,1554.8,6.43144]
[1744384848356,6.4305,1555.1,1554.8,12.863]
[1744384848552,6.59205,1555.2,1554.6,7.67279]
[1744384848553,14.53528,1555.4,1555.0,6.43064]
[1744384848850,20.96484,1555.4,1555.0,6.43064]
[1744384849153,6.49384691,1555.3,1555.0,12.86138]
[1744384850056,0.06419691,1555.3,1555.1,6.43028]
[1744384850360,12.68047,1555.6,1555.2,6.42987]
[1744384850557,6.49301691,1555.5,1555.2,6.42987]
[1744384850756,6.43019,1555.2,1554.9,7.75905]
[1744384850919,6.49438691,1555.2,1554.9,1.3279]
[1744384851123,0.06419691,1555.2,1554.9,1.3279]
[1744384851324,6.43058,1555.1,1554.8,6.43156]
[1744384851519,6.43058,1555.1,1554.7,7.72025]
[1744384851721,6.49510691,1555.0,1554.7,7.72018]
[1744384851920,6.43091,1555.0,1554.7,14.15217]
[1744384852117,0.643058,1555.1,1554.8,6.4314]
[1744384852317,7.073638,1555.1,1554.8,6.4314]
[1744384852517,0.06419691,1555.0,1554.7,7.72019]
[1744384852751,0.643058,1555.1,1554.8,6.43167]
[1744384852956,6.49431691,1555.2,1554.8,6.43158]
[1744384853145,6.4306,1555.1,1554.8,12.86316]
[1744384853342,12.86121,1555.1,1554.8,6.43158]
[1744384853561,0.06419691,1555.2,1554.7,7.72024]
[1744384853562,3.06419691,1555.2,1554.7,7.72024]
[1744384853727,0.1576,1555.0,1554.7,6.43204]
[1744384853929,16.08211691,1555.2,1554.9,6.43107]
[1744384854237,9.58777,1555.2,1554.9,6.43126]
[1744384854550,26.89455,1555.3,1555.0,6.43074]
[1744384854925,6.49428691,1555.2,1554.9,6.43115]
[1744384855124,6.49428691,1555.2,1554.9,12.8623]
[1744384855351,15.6203986,1555.2,1554.9,6.43115]
[1744384855666,6.58837,1555.1,1554.7,7.70805]
[1744384855960,6.58837,1555.1,1554.7,7.70821]
[1744384855961,6.58828,1555.1,1554.7,7.70821]
[1744384856336,13.01911,1555.1,1554.8,6.43168]
[1744384856738,2.69590169,1555.2,1554.7,7.70826]
[1744384856949,20.62246,1555.3,1555.0,12.86147]
[1744384857252,1.43210169,1555.5,1555.2,6.42969]
[1744384857437,0.06419691,1555.4,1555.2,6.42969]
[1744384857647,7.9252186,1555.5,1555.2,12.85973]
[1744384857822,6.65071691,1555.5,1555.2,12.85973]
[1744384858019,6.65071691,1555.5,1555.2,12.85961]
[1744384858225,6.58581,1555.7,1555.4,6.42921]
[1744384858470,3.06419691,1555.6,1555.4,6.42921]
[1744384858669,6.58581,1555.7,1555.4,6.42909]
[1744384858826,9.19734991,1555.7,1555.5,1.2379]
[1744384859160,0.06419691,1555.7,1555.5,7.66668]
[1744384860330,0.06419691,1555.8,1555.5,1.2379]
[1744384860533,0.06419691,1555.8,1555.0,9.43086]
[1744384860534,6.42869,1555.6,1555.0,9.43086]
[1744384860881,0.1576,1556.3,1555.5,4.32587147]
[1744384861165,6.58312,1556.3,1555.9,7.76441]
[1744384861462,6.42688,1556.0,1555.6,7.82996058]
[1744384861664,6.42653,1556.1,1555.7,6.42795]
[1744384861961,0.06419691,1556.0,1555.7,6.42788]
[1744384862163,0.06419691,1556.2,1555.9,6.42714]
[1744384862366,7.929,1556.1,1555.9,6.42714]
[1744384862668,14.35532,1556.1,1555.7,6.42788]
[1744384862871,6.49094691,1556.0,1555.7,6.42788]
[1744384863170,7.929,1556.1,1555.8,0.06427396]
[1744384863372,7.928,1556.3,1556.0,6.42673]
[1744384863668,7.928,1556.3,1556.0,6.42667]
[1744384863849,7.928,1556.3,1556.0,12.85334]
[1744384864168,0.06419691,1556.2,1555.9,7.69856]
[1744384864349,16.50055791,1556.3,1555.9,14.12562]
[1744384864544,10.010841,1556.3,1556.0,6.42667]
[1744384864749,7.928,1556.3,1556.0,6.42667]
[1744384864972,7.928,1556.3,1556.1,6.42626]
[1744384865142,7.99219691,1556.3,1556.0,12.85322]
[1744384865538,7.928,1556.3,1556.1,6.42624]
[1744384865738,7.928,1556.3,1556.1,6.42616]
[1744384866071,7.928,1556.3,1556.1,6.42615]
[1744384866575,7.928,1556.3,1556.1,12.85228]
[1744384867138,7.928,1556.3,1556.2,6.4259]
[1744384867549,0.05,1556.4,1556.2,6.4259]
[1744384867754,0.05,1556.4,1556.3,6.42549]
[1744384868185,0.05,1556.4,1556.0,6.91023251]
[1744384868186,0.05,1556.4,1556.0,8.19973251]
[1744384868344,0.05,1556.4,1556.0,12.85291]
[1744384868345,6.69707691,1556.4,1556.0,12.85291]
[1744384868541,0.11419691,1556.4,1556.2,6.42572]
[1744384868747,0.05,1556.4,1556.2,6.42572]
[1744384868995,0.1576,1557.3,1556.4,1.2923]
[1744384869160,0.1576,1557.3,1556.6,1.2923]
[1744384869343,6.42238,1557.1,1556.7,6.48781964]
[1744384869539,6.42265,1557.0,1556.6,7.71649]
[1744384869746,0.1576,1556.9,1556.4,7.71737]
[1744384870067,0.22179691,1557.1,1556.9,6.42302]
[1744384870465,0.22179691,1557.1,1556.8,6.42343]
[1744384870671,6.42284,1557.0,1556.6,6.42419]
[1744384870866,6.42284,1557.0,1556.6,6.42407]
[1744384870867,0.06419691,1556.9,1556.6,6.42407]
[1744384871211,7.926,1556.9,1556.6,12.84809]
[1744384871407,7.99019691,1556.9,1556.6,6.42402]
[1744384871703,15.8547606,1556.9,1556.4,7.71717]
[1744384871861,15.79056369,1556.9,1556.5,6.42452]
[1744384872055,15.79056369,1556.9,1556.6,6.42424]
[1744384872383,7.926,1556.9,1556.7,6.42364]
[1744384872590,7.924,1557.2,1556.9,6.42282]
[1744384872785,7.924,1557.2,1556.7,6.42374]
[1744384873099,6.42284,1557.0,1556.6,7.70951]
[1744384873260,7.07154369,1557.0,1556.6,7.70931]
[1744384873461,7.07154369,1557.0,1556.6,1.2853]
[1744384873462,6.42371,1556.8,1556.6,1.2853]
[1744384873803,6.42483,1556.5,1556.1,6.4263]
[1744384873960,6.42563,1556.3,1555.9,7.69631]
[1744384874158,6.48982691,1556.3,1555.9,7.69631]
[1744384874355,6.48982691,1556.3,1555.9,8.89235834]
[1744384874592,6.64742691,1556.3,1555.9,8.89235834]
[1744384874795,7.924,1556.4,1556.1,6.42608]
[1744384875108,6.48989691,1556.3,1555.9,8.89242834]
[1744384875311,6.5837,1556.2,1555.8,6.42755]
[1744384875604,12.85374,1556.0,1555.6,6.42822]
[1744384875783,0.1576,1556.2,1555.9,6.42713]
[1744384875988,0.06419691,1556.1,1555.8,12.85484]
[1744384876312,0.06419691,1556.1,1555.6,6.42834]
[1744384876313,6.42709,1556.0,1555.6,6.42834]
[1744384876489,6.42817,1555.7,1555.5,1.2698]
[1744384876804,0.06419691,1555.6,1555.3,7.70152]
[1744384877116,6.49182691,1555.8,1555.4,6.42902]
[1744384877261,0.1576,1555.9,1555.6,6.42807]
[1744384877468,0.22179691,1555.9,1555.6,6.42807]
[1744384877695,6.42761,1555.8,1555.5,6.42876]
[1744384877903,6.58482,1555.9,1555.5,12.85734]
[1744384878111,0.22179691,1555.9,1555.6,6.42823]
[1744384878287,13.07650691,1555.9,1555.5,7.53735953]
[1744384878607,6.58476,1555.9,1555.5,7.53754953]
[1744384878806,6.58476,1555.9,1555.5,1.10877953]
[1744384878807,6.4277,1555.8,1555.5,1.10877953]
[1744384878964,6.42853,1555.6,1555.3,1.2719]
[1744384879160,14.35353,1555.6,1555.3,1.2719]
[1744384879584,20.78214,1555.6,1555.1,14.18992]
[1744384879804,6.65077691,1555.5,1555.1,1.3292]
[1744384880116,13.07985691,1555.5,1555.1,1.46643584]
[1744384880293,0.1576,1555.5,1555.3,6.42943]
[1744384880691,7.925,1555.6,1555.3,6.42943]
[1744384882072,7.925,1555.6,1555.2,7.70589]
[1744384882287,20.78213,1555.6,1555.3,0.770589]
[1744384882795,14.35352,1555.6,1555.3,0.770589]
[1744384882968,20.78229,1555.6,1555.3,0.770589]
[1744384883170,6.42885,1555.5,1555.3,0.770589]
[1744384883678,6.42972,1555.3,1555.1,1.46643584]
[1744384883883,6.42923,1555.4,1555.1,1.46643584]
[1744384884089,6.42923,1555.4,1555.1,7.89684584]
[1744384884288,6.42923,1555.4,1555.1,1.46643584]
[1744384884617,0.06419691,1555.3,1554.8,8.450056]
[1744384884767,6.43102,1555.0,1554.6,7.68008]
[1744384884968,6.43293,1554.5,1554.4,4.26417337]
[1744384885186,6.49712691,1554.5,1554.4,4.26417337]
[1744384885605,6.65322691,1554.5,1554.4,4.26417337]
[1744384886026,6.58903,1554.5,1554.4,4.26417337]
[1744384886227,7.926,1554.7,1554.4,11.12376071]
[1744384886415,14.3584,1554.7,1554.4,4.69059071]
[1744384886749,6.43265,1554.6,1554.4,4.69059071]
[1744384886913,14.3582,1554.7,1554.4,11.12379071]
[1744384887114,14.3582,1554.7,1554.4,4.69059071]
[1744384887343,7.926,1554.7,1554.5,6.90182907]
[1744384887648,14.42244691,1554.7,1554.4,5.97159071]
[1744384887804,14.35825,1554.7,1554.4,5.97159071]
[1744384888006,20.79063,1554.7,1554.4,1.70741734]
[1744384888203,7.926,1554.7,1554.4,8.14049734]
[1744384888639,7.99019691,1554.7,1554.4,14.57370734]
[1744384888822,7.99019691,1554.7,1554.4,8.14049734]
[1744384889140,14.42230691,1554.7,1554.4,8.14049734]
[1744384889443,6.43088,1555.0,1554.5,0.87837525]
[1744384889444,8.0841,1555.0,1554.5,0.87837525]
[1744384889609,7.928,1555.0,1554.9,6.43128]
[1744384889802,10.75464147,1555.6,1554.9,1.2891]
[1744384889803,7.929,1555.5,1554.9,1.2891]
[1744384890038,14.35808,1555.5,1555.1,6.43017]
[1744384890249,56.56009,1555.7,1555.3,6.42922]
[1744384890839,50.132,1555.7,1555.4,6.42909]
[1744384891039,14.35659,1555.8,1555.5,0.06428464]
[1744384891240,6.42759,1555.8,1555.5,6.42857]
[1744384891442,6.58335,1555.9,1555.5,6.42857]
[1744384891644,6.42772,1555.8,1555.5,6.42857]
[1744384891843,12.85553,1555.8,1555.5,6.42857]
[1744384892042,6.42772,1555.8,1555.5,14.2844577]
[1744384892552,13.01069,1555.9,1555.6,6.42838]
[1744384892859,6.49199691,1555.8,1555.5,1.4272677]
[1744384893016,6.42834,1555.7,1555.3,8.20528616]
[1744384893211,6.42854,1555.6,1555.3,14.63476616]
[1744384893413,6.42834,1555.7,1555.3,14.63476616]
[1744384893414,6.42834,1555.7,1555.4,6.42913]
[1744384893729,6.42834,1555.7,1555.4,12.85819]
[1744384893934,6.42834,1555.7,1555.4,14.32153562]
[1744384894158,6.42764,1555.8,1555.5,6.42877]
[1744384894512,6.58332,1555.9,1555.4,1.46339562]
[1744384894714,6.42722,1555.9,1555.6,6.4281]
[1744384895611,14.35546,1556.1,1555.8,6.42731]
[1744384895807,6.49097691,1556.0,1555.7,6.42789]
[1744384896012,0.06419691,1556.0,1555.7,7.713452]
[1744384896228,6.42676,1556.0,1555.7,7.77771593]
[1744384896443,6.49095691,1556.0,1555.7,7.713442]
[1744384896621,12.91788691,1556.0,1555.7,7.713442]
[1744384896824,12.91787691,1556.0,1555.7,7.713582]
[1744384897025,6.49095691,1556.0,1555.7,1.285622]
[1744384897228,6.42821,1555.7,1555.4,1.46339562]
[1744384897427,7.917,1555.9,1555.4,1.52767778]
[1744384897627,7.98119691,1555.9,1555.4,7.89257562]
[1744384897947,12.85655,1555.7,1555.4,1.46339562]
[1744384898151,6.42757,1555.8,1555.4,7.89246562]
[1744384898320,6.42812,1555.7,1555.4,7.89246562]
[1744384898649,6.49184691,1555.8,1555.5,6.42866]
[1744384899040,6.42816,1555.7,1555.4,7.89249562]
[1744384899243,6.49185691,1555.8,1555.5,7.21782956]
[1744384899449,6.42766,1555.8,1555.5,7.21782956]
[1744384899648,12.85541,1555.8,1555.5,7.21782956]
[1744384899849,7.917,1555.9,1555.5,0.78924956]
[1744384900156,0.1561,1556.1,1555.8,6.4275]
[1744384900453,0.1561,1556.1,1555.5,6.42877]
[1744384900454,6.42686,1556.0,1555.6,6.42799]
[1744384900658,6.64672691,1556.1,1555.8,6.42751]
[1744384900814,6.42643,1556.1,1555.8,6.42751]
[1744384901214,6.49062691,1556.1,1555.8,6.42751]
[1744384901457,6.49062691,1556.1,1555.8,7.844786]
[1744384901671,0.1561,1556.4,1555.8,1.417276]
[1744384901816,0.1561,1556.4,1556.3,6.42549]
[1744384902235,0.1561,1556.4,1556.3,9.42549]
[1744384902656,0.1561,1556.4,1556.3,9.97549]
[1744384902853,0.1561,1556.4,1556.3,12.05731137]
[1744384904119,12.84383,1557.2,1556.8,6.42313]
[1744384904347,20.75896,1557.3,1556.9,6.42281]
[1744384904562,0.05,1557.4,1556.8,6.42343]
[1744384904738,0.05,1557.4,1557.3,6.42137]
[1744384904938,0.05,1557.4,1557.3,7.76986746]
[1744384905122,0.05,1557.4,1557.3,1.284297]
[1744384905318,6.42152,1557.3,1556.9,6.4228]
[1744384905660,12.90802691,1557.2,1556.8,6.42328]
[1744384905820,0.06419691,1557.2,1556.6,6.42409]
[1744384906016,6.42192,1557.2,1556.8,6.42325]
[1744384906269,12.84406,1557.2,1556.8,6.42325]
[1744384906554,14.13488569,1557.2,1556.8,6.42325]
[1744384906918,0.05,1557.4,1556.9,6.48683285]
[1744384907258,6.47121,1557.4,1557.0,6.42246]
[1744384907559,6.47121,1557.4,1557.1,6.42215]
[1744384907942,6.47121,1557.4,1557.2,6.4215]
[1744384907943,0.05,1557.4,1557.2,6.4215]
[1744384908325,0.05,1557.4,1557.1,12.84426]
[1744384908522,0.05,1557.4,1557.1,7.706426]
[1744384908723,0.05,1557.4,1557.2,6.42161]
[1744384909155,0.05,1557.4,1557.1,12.84406]
[1744384909453,0.05,1557.4,1557.2,6.42142]
[1744384909663,0.05,1557.4,1557.3,6.48557723]
[1744384909824,0.05,1557.4,1557.3,6.42137]
[1744384910022,0.05,1557.4,1557.3,7.76985253]
[1744384910223,0.05,1557.4,1557.3,7.76984922]
[1744384910956,0.05,1557.4,1557.3,10.705649]
[1744384911365,0.05,1557.4,1557.3,7.705649]
[1744384911537,0.05,1557.4,1557.3,6.42137]
[1744384911730,0.05,1557.4,1557.3,6.48557644]
[1744384912031,0.05,1557.4,1557.3,6.42137]
[1744384912231,12.55685,1558.4,1557.9,6.41887]
[1744384912430,6.4181,1558.1,1557.7,6.41953]
[1744384912835,6.48158691,1558.3,1557.6,6.42011]
[1744384913029,6.41911,1557.9,1557.5,6.42033]
[1744384913229,0.06419691,1557.9,1557.5,6.42033]
[1744384913438,6.41987,1557.7,1557.3,6.42117]
[1744384913663,14.18800091,1557.7,1557.3,6.42117]
[1744384913962,6.42019,1557.6,1557.2,6.42154]
[1744384914138,6.42063,1557.5,1557.2,6.42154]
[1744384914335,6.48482691,1557.5,1557.1,6.42207]
[1744384914666,6.42063,1557.5,1557.1,6.42201]
[1744384914831,7.062693,1557.5,1557.0,6.42249]
[1744384915028,6.42145,1557.3,1557.0,6.42249]
[1744384915267,6.4218,1557.2,1556.8,6.42339]
[1744384915428,6.42277,1557.0,1556.6,6.42396]
[1744384915775,6.48696691,1557.0,1556.6,6.42396]
[1744384915948,6.42226,1557.1,1556.7,12.84732]
[1744384916149,6.48709691,1557.0,1556.7,6.42373]
[1744384916325,7.364596,1557.1,1556.7,6.42384]
[1744384916531,7.364596,1557.1,1556.7,6.42364]
[1744384916727,6.42278,1557.0,1556.7,6.42381]
[1744384916957,6.42141,1557.3,1556.9,6.42277]
[1744384916958,6.42149,1557.3,1556.9,6.42277]
[1744384917157,6.42235,1557.1,1556.7,6.42371]
[1744384917561,7.12820591,1557.2,1556.6,4.26417337]
[1744384917862,13.55024591,1557.2,1556.8,6.42303]
[1744384918170,6.42195,1557.2,1556.8,6.42341]
[1744384918375,6.42228,1557.1,1556.8,6.42323]
[1744384918524,12.90826691,1557.2,1556.8,6.42323]
[1744384918867,6.48604691,1557.2,1556.8,12.84648]
[1744384919184,12.90819691,1557.2,1556.8,6.42343]
[1744384919388,6.42235,1557.1,1556.8,6.42335]
[1744384919585,15.84347,1557.3,1556.9,6.42287]
[1744384919883,9.42173,1557.3,1557.0,6.42241]
[1744384920086,0.06419691,1557.3,1557.1,6.42217]
[1744384920258,0.06419691,1557.4,1557.1,6.42206]
[1744384920462,6.48442691,1557.6,1557.2,6.48590424]
[1744384920691,6.48442691,1557.6,1557.2,6.42169]
[1744384920997,6.42072,1557.5,1557.2,6.42169]
[1744384921487,6.48442691,1557.6,1557.2,12.84333]
[1744384921702,6.4207,1557.5,1557.1,7.706611]
[1744384921891,6.48518691,1557.4,1557.1,6.42215]
[1744384922099,0.06419691,1557.4,1557.1,6.42199]
[1744384922423,9.48434691,1557.6,1556.8,6.42312]
[1744384922621,9.48434691,1557.6,1556.6,17.88308]
[1744384922622,6.48439691,1557.6,1556.9,6.42302]
[1744384922772,6.42099,1557.4,1557.0,6.42247]
[1744384922975,12.84221,1557.4,1557.0,7.707002]
[1744384923323,6.48481691,1557.5,1557.0,0.06421858]
[1744384923622,0.06419691,1557.5,1557.2,6.4217]
[1744384923920,6.41891,1557.9,1557.0,3.06421618]
[1744384924091,64.39152,1558.0,1557.7,6.41971]
[1744384924317,69.39902,1558.0,1557.7,6.41971]
[1744384924535,6.41773,1558.2,1557.8,6.48336431]
[1744384924830,0.06419691,1558.2,1558.0,1.3023]
[1744384925193,12.89982691,1558.2,1558.0,1.3023]
[1744384925511,6.48196691,1558.2,1558.0,1.3023]
[1744384925901,14.31529,1558.3,1558.0,7.72072]
[1744384925902,7.898,1558.3,1558.0,7.72072]
[1744384926211,6.4185,1558.0,1557.7,1.259]
[1744384926373,6.41908,1557.9,1557.7,1.259]
[1744384926695,12.90140691,1558.0,1557.7,1.259]
[1744384926904,6.48275691,1558.0,1557.7,1.259]
[1744384927474,12.90155691,1558.0,1557.7,1.259]
[1744384927709,6.41906,1557.9,1557.7,1.259]
[1744384928013,6.41977,1557.7,1557.4,7.75366]
[1744384928223,0.06419691,1557.8,1557.4,1.3328]
[1744384928514,6.42128,1557.4,1557.2,1.3328]
[1744384928722,0.06419691,1557.5,1557.2,1.3328]
[1744384929016,0.06419691,1557.6,1557.3,6.42123]
[1744384929181,6.48449691,1557.6,1557.2,7.75447]
[1744384929599,6.42075,1557.5,1557.2,1.3328]
[1744384929811,0.06419691,1557.4,1557.2,1.3328]
[1744384930118,6.09,1557.6,1557.0,7.73495]
[1744384930119,6.42162,1557.3,1557.0,7.73495]
[1744384930425,0.06419691,1557.3,1557.1,6.42216]
[1744384930914,0.06419691,1557.3,1557.0,14.15742]
[1744384931073,0.06419691,1557.3,1557.1,6.42218]
[1744384931272,0.06419691,1557.4,1557.1,12.84423]
[1744384931721,14.31763,1557.5,1557.2,6.42175]
[1744384932079,20.73835,1557.5,1557.2,6.42175]
[1744384932281,6.48535691,1557.4,1557.1,12.8441]
[1744384933005,0.06419691,1557.4,1557.1,12.8441]
[1744384933310,6.48522691,1557.4,1557.0,7.73498]
[1744384933503,6.48522691,1557.4,1557.0,14.15744]
[1744384933504,7.9234496,1557.4,1557.0,14.15744]
[1744384933918,7.9234496,1557.4,1557.1,6.42214]
[1744384934230,7.9234496,1557.4,1557.1,6.42207]
[1744384934533,14.3445696,1557.4,1557.0,14.15746]
[1744384934730,6.42137,1557.3,1557.0,7.73497]
[1744384935038,6.48599691,1557.2,1557.0,1.3125]
[1744384935235,0.06419691,1557.2,1557.0,7.73494]
[1744384935734,12.51126,1557.4,1557.0,1.3125]
[1744384935896,7.73680291,1557.3,1557.0,14.15748]
[1744384936090,6.48567691,1557.3,1557.0,14.15748]
[1744384936703,6.48567691,1557.3,1557.0,7.73499]
[1744384936999,6.48568691,1557.3,1557.0,7.73499]
[1744384937239,12.90726691,1557.3,1557.0,7.73499]
[1744384937531,6.48568691,1557.3,1557.0,7.73499]
[1744384937710,6.48568691,1557.3,1557.0,1.3125]
[1744384937927,6.42197,1557.2,1557.0,1.3125]
[1744384938120,18.93215,1557.4,1557.0,7.7349]
[1744384938296,6.48557691,1557.3,1557.0,7.7349]
[1744384938503,6.48557691,1557.3,1557.0,14.15738]
[1744384939226,6.48557691,1557.3,1557.0,1.3125]
[1744384939227,12.90727691,1557.3,1557.0,1.3125]
[1744384939428,6.48557691,1557.3,1557.0,7.73503]
[1744384939719,6.48557691,1557.3,1557.0,14.15751]
[1744384939940,0.06419691,1557.3,1557.1,6.422]
[1744384940438,6.48558691,1557.3,1557.0,14.1577]
[1744384940736,6.48558691,1557.3,1557.0,7.7351]
[1744384940942,6.48558691,1557.3,1557.0,14.1577]
[1744384941100,6.48558691,1557.3,1557.0,1.3125]
[1744384941304,6.42248,1557.1,1556.8,1.3212]
[1744384941639,7.898,1557.1,1556.7,6.42378]
[1744384941863,6.09,1557.2,1557.0,7.74536]
[1744384942159,12.51178,1557.2,1557.0,1.323]
[1744384942547,12.57597691,1557.2,1557.0,1.323]
[1744384942949,6.09,1557.2,1557.0,7.74539]
[1744384943467,6.09,1557.2,1557.0,7.74547]
[1744384943669,6.09,1557.2,1557.0,6.42247]
[1744384943960,6.15419691,1557.2,1556.9,14.16008]
[1744384944161,6.09,1557.2,1557.1,6.42219]
[1744384944468,6.09,1557.2,1556.9,2.730108]
[1744384944664,6.09,1557.2,1556.9,1.3141]
[1744384944821,6.09,1557.2,1557.1,6.42219]
[1744384945159,0.06419691,1557.3,1557.2,6.42178]
[1744384945359,7.96219691,1557.4,1557.2,6.42178]
[1744384945553,14.38319691,1557.4,1557.1,12.84422]
[1744384945757,7.898,1557.4,1556.9,1.3141]
[1744384945945,6.42148,1557.3,1556.9,7.73697]
[1744384946258,6.42148,1557.3,1556.9,14.15986]
[1744384946259,6.48613691,1557.2,1556.9,14.15986]
[1744384946636,0.06419691,1557.2,1557.0,6.42258]
[1744384947157,6.48598691,1557.2,1556.9,14.15986]
[1744384947353,0.06419691,1557.2,1557.0,12.84497]
[1744384947553,0.06419691,1557.2,1556.9,1.3141]
[1744384947858,0.06419691,1557.3,1557.1,6.42219]
[1744384948439,6.09,1557.6,1557.4,6.42077]
[1744384948646,7.898,1557.7,1557.5,12.84108]
[1744384948831,7.96219691,1557.7,1557.5,6.42054]
[1744384949162,0.06419691,1557.7,1557.6,6.42013]
[1744384949361,0.06419691,1557.8,1557.6,6.42013]
[1744384949549,6.48353691,1557.8,1557.5,6.42042]
[1744384949755,6.48353691,1557.8,1557.5,12.84084]
[1744384949951,0.06419691,1557.9,1557.6,6.41995]
[1744384950130,0.06419691,1557.9,1557.5,1.284084]
[1744384950326,6.41985,1557.7,1557.4,7.76394]
[1744384950530,0.06419691,1557.9,1557.7,6.41963]
[1744384950730,6.41931,1557.8,1557.5,6.4204]
[1744384950962,6.48414691,1557.7,1557.4,7.76391]
[1744384951130,0.06419691,1557.7,1557.4,7.76391]
[1744384951343,6.41937,1557.8,1557.5,12.84083]
[1744384951545,6.41809,1558.1,1557.8,6.4193]
[1744384951762,0.06419691,1558.0,1557.8,6.4193]